Cogmind - Beta 16 @@@ ROGUE MODE // 2025.12.04 @ 11:14:10 Player: C0-2MO Result: Destroyed by 5H-UIU(x) with Makeshift Spear Performance ------------- Evolutions (0) 0 Regions Visited (4) 800 Robots Destroyed (33) 165 Value Destroyed (794) 794 Prototype IDs (21) 420 Alien Tech Used (0) 0 Bonus (800) 800 TOTAL SCORE: 2979 Bonus ------- Registered with UFD 300 Met Optimus in HQ 500 Cogmind --------- Core Integrity 0/250 Matter 280/300 Energy 118/140 System Corruption 0% Temperature Cool (0) Movement Walking (90) Location -7/Scraptown Parts ------- > --- POWER (1) -------- Light Deuterium Engine > --- PROPULSION (2) --- Assembled Alloy Leg Potential Leg > --- UTILITY (2) ------ Personal Teleporter v0.10 > --- WEAPON (2) ------- Heavy Mace Makeshift Sword > --- INVENTORY (5) ---- Arachnoskeleton A0-MCA's Component Scanner Peak State ------------ > --- POWER ------------ Light Deuterium Engine > --- PROPULSION ------- Assembled Alloy Leg Potential Leg > --- UTILITY ---------- Personal Teleporter v0.10 > --- WEAPON ----------- Heavy Mace Makeshift Sword > --- INVENTORY -------- Arachnoskeleton A0-MCA's Component Scanner [Rating: 39] Favorites ----------- Power Light Deuterium Engine Engine Light Deuterium Engine Propulsion Light Treads Treads Light Treads Leg Potential Leg Wheel Subdweller Monowheel Utility High-capacity Storage Unit Device Subdweller Optics Storage High-capacity Storage Unit Protection Scrap Shield Weapon Battle Cannon Energy Gun EM Pulse Gun Energy Cannon Subdweller Beam Cannon Ballistic Gun Light Assault Rifle Ballistic Cannon Battle Cannon Launcher Grenade Launcher Impact Weapon Heavy Mace Slashing Weapon Makeshift Sword Special Melee Weapon Datajack Build | -11 -10 -10 -7 -7 ------- Run | Yrd Mat Sub Rec Scr Slots Evolved . | . . . . . Power . | . . . . . Propulsion . | . . . . . Utility . | . . . . . Weapon . | . . . . . Parts Attached 39 | 7 2 20 . 10 Power 6 | 1 . 3 . 2 Engine 6 | 1 . 3 . 2 Core . | . . . . . Reactor . | . . . . . Propulsion 9 | 2 . 4 . 3 Treads 4 | 2 . 2 . . Leg 2 | . . . . 2 Wheel 3 | . . 2 . 1 Hover . | . . . . . Flight . | . . . . . Utility 9 | 2 1 4 . 2 Device 5 | 1 . 3 . 1 Storage 2 | 1 . 1 . . Processor . | . . . . . Hackware . | . . . . . Protection 2 | . 1 . . 1 Artifact . | . . . . . Weapon 15 | 2 1 9 . 3 Energy Gun 5 | 2 1 2 . . Energy Cannon 1 | . . 1 . . Ballistic Gun 1 | . . . . 1 Ballistic Cannon 4 | . . 4 . . Launcher 1 | . . 1 . . Special Weapon . | . . . . . Impact Weapon 1 | . . . . 1 Slashing Weapon 1 | . . . . 1 Piercing Weapon . | . . . . . Special Melee Weapon 1 | . . 1 . . Unidentified Prototypes . | . . . . . Corrupted Parts 1 | . . 1 . . System Corruption 2 | . . 2 . . Parts Lost 7 | . 2 4 . 1 Power 2 | . . 2 . . Propulsion . | . . . . . Utility 3 | . 1 1 . 1 Weapon 2 | . 1 1 . . Highest Loss Streak 2 | . 1 2 . 1 To Critical Strikes 1 | . 1 . . . Average Backups 9 | . 5 13 17 4 Power . | . 1 . . . Propulsion 3 | . . 4 5 1 Utility 2 | . 1 3 4 1 Weapon 3 | . 1 4 6 1 Tool/Special . | . . . . . Unused Backups 16 | . . . . 16 Power 1 | . . . . 1 Propulsion 6 | . . . . 6 Utility 6 | . . . . 6 Weapon 3 | . . . . 3 Tool/Special . | . . . . . Average Slot Usage (%) 84 | . 97 94 98 66 Engine 11 | . 14 9 14 11 Treads 12 | . 28 17 14 4 Wheel 11 | . . 10 14 13 Device 8 | . 5 12 14 2 Storage 9 | . 14 14 14 2 Protection 5 | . 6 1 . 11 Energy Gun 6 | . 28 8 . . Energy Cannon 1 | . . 2 . . Ballistic Cannon 9 | . . 15 26 . Impact Weapon 3 | . . . . 9 Slashing Weapon 3 | . . . . 9 Peak Build Rating 39 | 7 7 16 15 39 Average Rating 15 | 5 6 13 14 19 On Entrance 8 | . 7 7 15 11 Avg Prop Armor Cover (%) 11 | 24 . 12 10 11 Naked Turns . | . . . . . Heaviest Build 59 | 15 17 59 51 45 Greatest Support 40 | 40 40 40 20 30 Greatest Overweight (x) 5 | 1 . 2 2 5 Average Overweight (x) . | . . 1 2 . Largest Inventory Capacity 20 | 8 8 20 20 20 Average Capacity 13 | 7 8 17 20 7 Most Carried 20 | 2 7 20 20 20 Average Carried 11 | . 5 16 19 6 Final Capacity 20 | 8 8 20 20 5 Final Carried 20 | 1 7 20 20 4 Class Distribution -------------------- 75% | Mutant 24% | Derelict-Mutant Dominant Class ---------------- Mutant | -10/Materials Mutant | -10/Subcaves Mutant | -7/Recycling Derelict-Mutant | -7/Scraptown Resources | -11 -10 -10 -7 -7 ----------- Run | Yrd Mat Sub Rec Scr Matter Collected 1361 | 270 15 719 52 305 Remotely . | . . . . . Salvage Created 847 | 98 253 447 49 . Parts 59 | 4 24 30 1 . Haulers Intercepted . | . . . . . Recyclers Shooed . | . . . . . Parts Field Recycled . | . . . . . Retrieved Matter . | . . . . . Parts Self-Destructed 18 | . . 18 . . Prevented . | . . . . . Parts Restored . | . . . . . Kills | -11 -10 -10 -7 -7 ------- Run | Yrd Mat Sub Rec Scr Combat Hostiles Destroyed 25 | . 8 17 . . Guns 11 | . 8 3 . . Cannons 9 | . . 9 . . AOE 5 | . . 5 . . Classes Destroyed 9 | 2 4 3 . . Tunneler 1 | 1 . . . . Recycler 2 | 1 . . 1 . Operator 1 | . 1 . . . Turret 2 | . . 2 . . Watcher 2 | . 2 . . . Swarmer 11 | . 6 5 . . Grunt 3 | . 2 1 . . Sentry 1 | . . 1 . . Subdweller 10 | . . 10 . . Best Kill Streak 5 | 2 3 5 1 . Combat Bots Only 4 | . 3 4 . . Max Kills in Single Turn 3 | 1 1 3 1 . Gunslinging . | . . . . . Exploded 3 | . . 3 . . Melee . | . . . . . Uniques/NPCs Destroyed . | . . . . . Combat | -11 -10 -10 -7 -7 -------- Run | Yrd Mat Sub Rec Scr Hostile Shots Fired 179 | . 43 100 . 36 Missed 55 | . 9 32 . 14 Hits 124 | . 34 68 . 22 Melee 10 | . . . . 10 Projectile 114 | . 34 68 . 12 Critical Strikes 6 | . 1 2 . 3 Damage Taken 1958 | . 281 1107 . 570 Core 273 | . 24 146 . 103 Absorbed by Shields . | . . . . . Core Remaining (%) 100 | 100 . . . . Volleys Fired 139 | 3 26 109 1 . Largest 2 | 2 2 2 2 . Hottest 140 | 80 90 140 66 . Shots Fired 228 | 6 50 169 3 . Gun 109 | 6 50 53 . . Cannon 113 | . . 110 3 . Launcher 6 | . . 6 . . Special . | . . . . . Kinetic 75 | . . 72 3 . Thermal 87 | . 5 82 . . Explosive 6 | . . 6 . . Electromagnetic 60 | 6 45 9 . . Robot Hit Streak 10 | 1 7 10 1 . Robot Miss Streak 6 | 3 6 3 1 . Penetration Max . | . . . . . Secondary Targets . | . . . . . Shots Hit Robots 118 | 2 21 84 1 10 Core Hits 47 | 2 13 29 1 2 Critical Kills . | . . . . . Critical Parts Destroyed 1 | . . 1 . . Critical Strikes 11 | . 2 8 . 1 Burn 2 | . 1 1 . . Destroy 1 | . . 1 . . Blast 5 | . . 5 . . Corrupt 2 | . 1 1 . . Sever 1 | . . . . 1 Melee Attacks 19 | . . . . 19 Impact 14 | . . . . 14 Slashing 5 | . . . . 5 Piercing . | . . . . . Sneak Attacks 2 | . . . . 2 Combat Hostiles . | . . . . . Follow-up Attacks 5 | . . . . 5 Damage Inflicted 2544 | 121 297 1872 21 233 Guns 804 | 30 297 477 . . Cannons 1241 | . . 1220 21 . Explosions 266 | 91 . 175 . . Melee 233 | . . . . 233 Ramming . | . . . . . Kinetic 853 | . . 832 21 . Thermal 938 | 91 38 809 . . Explosive 175 | . . 175 . . Electromagnetic 345 | 30 259 56 . . Impact 154 | . . . . 154 Slashing 79 | . . . . 79 Piercing . | . . . . . Highest Corruption 3 | . 1 3 3 3 Average Corruption 2 | . 1 2 3 3 Corruption Purged . | . . . . . Corruption Blocked . | . . . . . Effects 93 | . 1 54 7 31 Message Errors 21 | . . 16 1 4 Matter Fused 30 | . . 15 3 12 Heat Flow Errors 13 | . . 4 . 9 Energy Discharges 8 | . . 7 . 1 Parts Rejected 1 | . . 1 . . Parts Fused 1 | . 1 . . . Data Loss (minor) 12 | . . 6 2 4 Data Loss (major) 3 | . . 2 . 1 Misfires 3 | . . 2 1 . Weapon Failures 1 | . . 1 . . Overload Shots . | . . . . . Overflow Damage 83 | . . 7 . 76 Projectiles 7 | . . 7 . . Explosions . | . . . . . Melee 76 | . . . . 76 Knockbacks 5 | . . 5 . . Impact . | . . . . . Kinetic 5 | . . 5 . . Secondary . | . . . . . Self-Inflicted Damage . | . . . . . Shots . | . . . . . Rammed . | . . . . . Targets Rammed . | . . . . . Kicked . | . . . . . Crushed . | . . . . . Highest Temperature 256 | 36 166 251 6 256 Average Temperature 67 | 18 58 53 4 97 Received Heat Transfer 479 | . 24 285 . 170 Siege Activations . | . . . . . Martial Activations . | . . . . . Shielding Activations . | . . . . . Robots Disrupted . | . . . . . Combat Hostiles . | . . . . . Robots Corrupted . | . . . . . Combat Hostiles . | . . . . . Parts Fried 2 | . 1 1 . . Impact Corruptions 1 | . . . . 1 Robots Melted . | . . . . . Combat Hostiles . | . . . . . Parts Melted 2 | . 1 1 . . Heat Transferred 1622 | 100 185 1337 . . Parts Sabotaged . | . . . . . Parts Stolen . | . . . . . Parts Stripped . | . . . . . Power Chain Reactions 2 | 2 . . . . Alert | -11 -10 -10 -7 -7 ------- Run | Yrd Mat Sub Rec Scr Maximum Alert Level . | . . . . . Low Security (%) 100 | 100 100 . 100 . Level 1 . | . . . . . Level 2 . | . . . . . Level 3 . | . . . . . Level 4 . | . . . . . Level 5 . | . . . . . High Security . | . . . . . Max Security . | . . . . . Peak Influence 99 | 5 99 . 72 . Initial 52 | . . . 52 . Average 33 | 2 48 . 25 . Influence Increases 665 | 10 254 225 176 . Destroy 0b10 Robot/C 340 | . 160 180 . . Destroy 0b10 Robot/NC 30 | 10 15 . 5 . Destroy Leader 34 | . 34 . . . Successful Hack 35 | . . . 35 . Select Force Hacks 150 | . 30 . 120 . Disable Machine 15 | . . . 15 . Destroy Structure 1 | . . . 1 . Lose Combat Pursuer 60 | . 15 45 . . Influence Decreases 665 | 10 220 148 287 . Entered New Map 76 | . . 17 59 . Time Decay 559 | 10 200 121 228 . Lost Part 30 | . 20 10 . . Squads Dispatched 1 | . 1 . . . Investigation 1 | . 1 . . . Extermination . | . . . . . Reinforcement . | . . . . . Assault . | . . . . . Garrison . | . . . . . Intercept . | . . . . . Searches Triggered . | . . . . . Construction Impeded . | . . . . . Haulers Reinforced . | . . . . . Active Scanning Responses . | . . . . . Cargo Convoy Interrupts . | . . . . . Stealth | -11 -10 -10 -7 -7 --------- Run | Yrd Mat Sub Rec Scr Distress Signals 1 | . 1 . . . Communications Jammed . | . . . . . Distress Signals . | . . . . . Times Spotted 40 | . 12 21 . 7 Peak Tracking Total 6 | . 3 6 . 4 Tactical Retreats 4 | . 1 3 . . Traps | -11 -10 -10 -7 -7 ------- Run | Yrd Mat Sub Rec Scr Traps Triggered 2 | . 1 1 . . Indirectly . | . . . . . Trap Hack Attempts 20 | . . 20 . . Triggered . | . . . . . Disarmed . | . . . . . Reprogrammed 3 | . . 3 . . Reused 3 | . . 2 . 1 Traps Extracted . | . . . . . Installed 1 | . . . . 1 Triggered . | . . . . . Machines | -11 -10 -10 -7 -7 ---------- Run | Yrd Mat Sub Rec Scr Machines Disabled 6 | . . 4 1 1 Max in Single Turn 1 | . . 1 1 1 Machines Repaired . | . . . . . Machines Dismantled . | . . . . . Machines Sabotaged . | . . . . . Overloaded Fab Kills . | . . . . . Hacking | -11 -10 -10 -7 -7 --------- Run | Yrd Mat Sub Rec Scr Machines Accessed 17 | . 4 2 9 2 Terminals 8 | . 3 . 5 . Fabricators . | . . . . . Repair Stations . | . . . . . Recycling Units 5 | . 1 . 4 . Scanalyzers . | . . . . . Garrison Access . | . . . . . Total Hacks 49 | . 6 6 17 20 Successful 40 | . 4 6 10 20 Failed 9 | . 2 . 7 . Catastrophic 2 | . 1 . 1 . Database Lockouts . | . . . . . Manual 22 | . 6 . 16 . Terminals 18 | . 5 . 13 . Fabricators . | . . . . . Repair Stations . | . . . . . Recycling Units 5 | . 1 . 4 . Scanalyzers . | . . . . . Garrison Access . | . . . . . Terminal Hacks 26 | . . 6 . 20 Record 24 | . . 5 . 19 Proto ID Catalog 2 | . . 1 . 1 Fabricator Hacks . | . . . . . Repair Station Hacks . | . . . . . Recycling Unit Hacks . | . . . . . Scanalyzer . | . . . . . Garrison Access Hacks . | . . . . . Unauthorized Hacks 14 | . 4 . 10 . Terminals 9 | . 3 . 6 . Botnet 3 | . 1 . 2 . Skim 6 | . 2 . 4 . Fabricators . | . . . . . Repair Stations . | . . . . . Recycling Units 5 | . 1 . 4 . Tunnel 5 | . 1 . 4 . Scanalyzers . | . . . . . Garrison Access . | . . . . . Data Cores Recovered 1 | . 1 . . . Used . | . . . . . Hacking Detections 6 | . 2 . 4 . Full Trace Events . | . . . . . Feedback Events . | . . . . . Feedback Blocked . | . . . . . Robot Schematics Acquired . | . . . . . Robots Built . | . . . . . Authchips . | . . . . . Time . | . . . . . Total Robot Build Rating . | . . . . . Part Schematics Acquired . | . . . . . Parts Built . | . . . . . Authchips . | . . . . . Time . | . . . . . Total Part Build Rating . | . . . . . Part Studies Acquired . | . . . . . Parts Repaired . | . . . . . Time . | . . . . . Parts Recycled . | . . . . . Recycled Matter . | . . . . . Retrieved Matter . | . . . . . Retrieved Components . | . . . . . Parts Scanalyzed . | . . . . . Part Schematics Acquired . | . . . . . Parts Damaged . | . . . . . Bothacking | -11 -10 -10 -7 -7 ------------ Run | Yrd Mat Sub Rec Scr Used RIF Installer . | . . . . . Robots Hacked . | . . . . . Non-combat . | . . . . . Combat . | . . . . . Robot Hacks Applied . | . . . . . Relay Couplers Released . | . . . . . Fabnet Peak Effective % . | . . . . . Robots Rewired . | . . . . . Allies Hacked . | . . . . . Hacks Repelled . | . . . . . Allies | -11 -10 -10 -7 -7 -------- Run | Yrd Mat Sub Rec Scr Total Allies 1 | . . . . 1 Largest Group 1 | . . . . 1 Highest-Rated Group 59 | . . . . 59 Highest-Rated Ally 59 | . . . . 59 Total Orders 1 | . . . . 1 STAY 1 | . . . . 1 Ally Attacks 11 | . . . . 11 Total Damage 228 | . . . . 228 Kills 1 | . . . . 1 Allies Corrupted . | . . . . . Allies Melted 3 | . . . . 3 Intel | -11 -10 -10 -7 -7 ------- Run | Yrd Mat Sub Rec Scr Active Infowar (turns) 1144 | 6 184 954 . . Optics 954 | . . 954 . . Seismic 190 | 6 184 . . . Robot Analysis Total . | . . . . . Derelict Logs Recovered 5 | . . 1 . 4 Drone Launches . | . . . . . Drone Recoveries . | . . . . . Exploration | -11 -10 -10 -7 -7 ------------- Run | Yrd Mat Sub Rec Scr Turns Passed 6403 | 73 482 2742 659 2447 Spaces Moved 4560 | 42 234 1671 504 2109 Core 20 | 17 . . . 3 Treads 574 | 25 234 315 . . Legs 50 | . . . . 50 Wheels 3916 | . . 1356 504 2056 Hover . | . . . . . Flight . | . . . . . Fastest Speed 45 | 50 160 130 130 45 Average Speed 122 | 127 160 136 130 105 Slowest Speed 320 | 160 160 320 130 300 Overloaded Moves 27 | . . . . 27 Propulsion Burnouts . | . . . . . Robots Hopped . | . . . . . Potential Cave-ins . | . . . . . Cave-ins Triggered . | . . . . . Exploration Rate (%) 65 | 4 52 95 93 85 Regions Visited 4 Branch Regions 3 Pre-discovered Areas 9 | . 1 . 4 4 Known Exits Taken . | . . . . . Unknown Exits Taken 4 | 1 1 1 1 . Scrap Searched 13 | . . 6 . 7 Spaces Dug 1 | . . 1 . . Terrain Destroyed 30 | 7 . 22 1 . Melee . | . . . . . Projectile 7 | . . 6 1 . AOE 23 | 7 . 16 . . Terrain Rammed . | . . . . . Walls Destroyed . | . . . . . Machines Disabled . | . . . . . Actions | -11 -10 -10 -7 -7 --------- Run | Yrd Mat Sub Rec Scr Total 5115 | 53 291 1954 508 2309 Wait 253 | . 23 101 . 129 Move 4556 | 41 233 1670 503 2109 Hop . | . . . . . Pick Up 41 | 2 7 14 . 18 Fast Attach 21 | 6 1 6 . 8 Attach 11 | 1 1 6 . 3 Detach 5 | . . 2 2 1 Swap 19 | . . 17 . 2 Drop 35 | . . 9 2 24 Fire 139 | 3 26 109 1 . Melee 14 | . . . . 14 Ram . | . . . . . Kick . | . . . . . Crush . | . . . . . Escape Stasis . | . . . . . Rewire . | . . . . . Trap 21 | . . 20 . 1 Miscellaneous . | . . . . . Route ------- -11/Scrapyard -10/Materials (discovered 2 exits: [*Mat] / *Sub) -10/Subcaves (discovered 3 exits: [*Mat x2] / *Rec) -7/Recycling (discovered 2 exits: *Fac / *Scr) -7/Scraptown (discovered 2 exits: *Fac x2) History --------- Turn | Location | Event 28 | -11/Scrapyard | Discovered new exit (range 15) 74 | -11/Scrapyard | Entered Materials 317 | -10/Materials | Build established: Mutant 415 | -10/Materials | Discovered new exit (range 13) 548 | -10/Materials | Discovered new exit (range 6) 556 | -10/Materials | Entered Subcaves 592 | -10/Subcaves | Discovered new exit (range 7) 1166 | -10/Subcaves | Visited 4L-MR0's lab 1181 | -10/Subcaves | Found Arachnoskeleton 1270 | -10/Subcaves | Shifting Twisted Machinery released Mak. Leg 1270 | -10/Subcaves | Shifting Twisted Machinery released Sub. Monowheel 1278 | -10/Subcaves | Shifting Twisted Machinery released Sub. Monowheel 1297 | -10/Subcaves | Shifting Twisted Machinery released Sub. Power Source 1310 | -10/Subcaves | Learned Materials stockpile data 1353 | -10/Subcaves | Visited Clippyterm 1357 | -10/Subcaves | Learned Research machine intel 1357 | -10/Subcaves | Learned Factory emergency access door positions 1376 | -10/Subcaves | Discovered new exit (range 15) 1403 | -10/Subcaves | Disturbed a concealed Subdweller 2104 | -10/Subcaves | Core integrity fell below 50% 2598 | -10/Subcaves | Discovered new exit (range 18) 2689 | -10/Subcaves | Disturbed a concealed Subdweller 3034 | -10/Subcaves | A swath of the cavern ceiling suddenly collapsed 3298 | -10/Subcaves | Entered Recycling 3392 | -7/Recycling | Discovered new exit (range 8) 3927 | -7/Recycling | Scanned before Scraplab entrance 3946 | -7/Recycling | Entered Scraplab 3956 | -7/Recycling | Discovered new exit (range 2) 3957 | -7/Recycling | Entered Scraptown 4105 | -7/Scraptown | Heard Great Nut preacher, LISTEN AND RECITE! 4112 | -7/Scraptown | Visited Awakened 4122 | -7/Scraptown | Visited Cave Peace 4161 | -7/Scraptown | Visited Cyclists 4174 | -7/Scraptown | Visited Fellowship of the Rings 4191 | -7/Scraptown | Visited CPS Storage 4204 | -7/Scraptown | Visited TADAMA 4218 | -7/Scraptown | Visited UFD Registry 4218 | -7/Scraptown | Registered with UFD as "Carbonsourcer" 4249 | -7/Scraptown | Visited Science Guys 4365 | -7/Scraptown | Scanned Subdweller tech in exchange for log data 4368 | -7/Scraptown | Learned Factory interactive machine intel 4369 | -7/Scraptown | Learned Research terminal intel 4370 | -7/Scraptown | Learned location of Armory (-4) 4372 | -7/Scraptown | Learned location of 1 exit from Upper Caves 4383 | -7/Scraptown | Discovered new exit (range 11) 4493 | -7/Scraptown | Warned about trapping Scraptown 4696 | -7/Scraptown | Visited Curators Association 4733 | -7/Scraptown | Visited Science Testing Area 4756 | -7/Scraptown | Visited DA-N13 Charitable Foundation 4761 | -7/Scraptown | Found DCF Scrap (28 items) 4817 | -7/Scraptown | Visited A0-MCA Data Center 4823 | -7/Scraptown | Given an A- rating by A0-MCA 4827 | -7/Scraptown | Found A0-MCA's Component Scanner 4841 | -7/Scraptown | Visited Botcube Research 4845 | -7/Scraptown | Found Botcube 4866 | -7/Scraptown | Visited Observation Area 4882 | -7/Scraptown | Visited Derelict Rescue Squad 4898 | -7/Scraptown | Visited Cartography Club 4946 | -7/Scraptown | Learned location of Storage (-7) 4946 | -7/Scraptown | Learned location of Upper Caves (-4) 4946 | -7/Scraptown | Learned 12 Materials zone layouts 4946 | -7/Scraptown | Learned 8 Factory zone layouts 4946 | -7/Scraptown | Learned 12 Factory zone layouts 4946 | -7/Scraptown | Learned 8 Research zone layouts 4946 | -7/Scraptown | Learned 8 Lower Caves zone layouts 4946 | -7/Scraptown | Learned 20 Lower Caves zone layouts 4946 | -7/Scraptown | Learned 16 Proximity Caves zone layouts 4946 | -7/Scraptown | Learned 20 Proximity Caves zone layouts 4946 | -7/Scraptown | Learned 4 Hub_04(d) zone layouts 4946 | -7/Scraptown | Learned Storage emergency access door positions 4946 | -7/Scraptown | Learned location of 1 exit from Research 4946 | -7/Scraptown | Learned location of 2 exits from Upper Caves 4946 | -7/Scraptown | Identified exit to Factory 5073 | -7/Scraptown | Build established: Derelict-Mutant 5300 | -7/Scraptown | Visited Scrap Suit Storage 5304 | -7/Scraptown | Found Scrap Suit 5640 | -7/Scraptown | System corruption cleaned by C-Scrubber 5913 | -7/Scraptown | Botcube activated 5933 | -7/Scraptown | Botcube completed mutation into treaded form, armed with 1 gun, 1 cannon. 6198 | -7/Scraptown | Met Optimus 6198 | -7/Scraptown | Accepted into 0bPrime 6316 | -7/Scraptown | Civil war broke out across Scraptown 6329 | -7/Scraptown | Found Potential Leg 6366 | -7/Scraptown | Found Personal Teleporter v0.10 6401 | -7/Scraptown | Core integrity fell below 20% 6404 | -7/Scraptown | Destroyed by 5H-UIU(x) with Makeshift Spear Last Messages --------------- 06356_ Machine disabled. 06359_ Slug penetrates YO-N9N(h). 06359_ YO-N9N(h) destroyed. 06359_ Slug penetrates M1-JFO(j). 06359_ M1-JFO(j) destroyed. 06360_ Acquired 22 matter. 06362_ Critical hit (Burn: +50). 06363_ Slug penetrates RD-LWV(j). 06364_ Scrap Shield destroyed. 06365_ RD-LWV(j) destroyed. 06366_ Acquired Personal Teleporter v0.10. 06371_ CX-Y3E(j) switches sides. 06379_ Mak. Sword follow-up attack on 5H-UIU(x). 06380_ CX-Y3E(j) destroyed. 06385_ 5H-UIU(x): "Down with Optimus!" 06385_ Mak. Sword follow-up attack on 5H-UIU(x). 06391_ Critical hit (Impale). 06397_ Mak. Sword follow-up attack on 5H-UIU(x). 06397_ 5H-UIU(x) Lgt. Ion Engine severed. Map ----- +----------------------------------------------------+ | ### ###?????#" "" "" | | ??# #########" ""# " " ######## | | ??# ""# "" "" ""#?????? | | ??# ""# "" "" ##?????? | | ??# [""# X"#?????? | | ??# !%""# ##?????? | | ### *!""###### ############# | | """"""""""""""""""""""" | | """"""" """""""""" | | = *[%!= =[% | | [=! !=!=!== !! | | %= !=%*=%! = | | #""""#" ==%!%[%[ | | #???"" ![=!%*[ | | #???"# """ """""" """"" """ | | ######### ####??"";;;;;;; ;;######### ########## | | ???????# #?????" ;; =% "## #?#" | | ?????# #?????" ;; % ### ##?##"" | | "???# #?????"";; ""##" "#??#!" | | "" "#??# #?????" ;; ! ""##"! !"#?##"" | | "" "#??# #?????"";; =%! ""##"! !"#?#" | | "" "#??# #??????";; ! """##"! !"#?##"" | | "#??# #??????"## """##"! !"#??#!" | | ? "#??# #????????#"" " j "### X####?##"" | | ????"#??# #????????#""""x """#?" "#????#" | | ????????# #????????#"""@X """""#?"! "????#### | | ????????# #????????#"""""""""""#?######???????#" | | ???###### #????????#############??????????????## | | ?"""""""" #????????????????????????????????????# | | """ """"" #????????????????????????????????"??#" | | "" " "" #????????????????????????##" "##"""##" | | #???????????????????????? | | "" "" " #???????????????????????? | | """"""""" #???????????????????????? | | ???"""""" #???????????????????????????" ##" "##! | | ???###### #???????????????????????????????????#" | | ######### #???????????????????????????????????## | | """"""""# #????????????????????????????????????? | | !! ][ "# #????????????????????????????????????? | | / | "# #????????????????????????????????????? | | "# #????????????????????????????????????? | | """""""# #????????????????????????????????????? | | #????????????????????????????????????? | | #????????????????????????????????????? | | #""" """#####????????????????????????????????????? | | #"" "#????????????????????????????????????????? | | #"" "#????????????????????????????????????????? | | #" "#????????????????????????????????????????? | | "#????????????????????????????????????????? | | #"""""""#????????????????????????????????????????? | +----------------------------------------------------+ Best States ------------- Heat Dissipation 25 Coolant Potential 50 Energy Generation 15 Energy Capacity 250 Matter Stores 300 Matter Capacity 300 Sight Range 21 Terrain Scan Density 10 Armor Coverage 800 Evasion (%) 61 Recoil Reduction 2 Item Schematics ----------------- None Robot Schematics ------------------ None Fabricated ------------ Nothing Repaired ---------- Nothing Studied --------- None Alien Tech Used ----------------- None Achievements -------------- None Challenges ------------ None Game ------ Seed ThrusterSigixHammer Manual? 0 Play Time 00:47:52 Cumulative 740.1 hours Start 2025.12.04 @ 10:24:11 End 2025.12.04 @ 11:14:10 Sessions 1 Manual Loads 0 Difficulty Rogue Special Mode None Game No. 312 Rogue 312 Adventurer 0 Explorer 0 Win Type - Total 76 Types 38/5/13/6/6/1/1/3/0/3 Lore% 97 Gallery% 90 Achievement% 82 Wizard Run 0 Options --------- Layout 1 ASCII 0 Keyboard 0 Movement Numpad Keybinds 0 Fullscreen 1 Font 24/Smallcaps Map View 50x35 Zoom Use 0% Tactical HUD 1 Map Filters NONE Filters NONE Steam 1 RUN: 2bd0c7fa-cd7c-4b07-8c68-01f79024ec41